[Event "44th Chess Olympiad Open 2022"]
[Site "Chennai"]
[Date "2022.07.30"]
[Round "2.15"]
[White "Nikolovski, Nikola"]
[Black "Maurizzi, Marc`Andria"]
[Result "0-1"]
[ECO "C55"]
[WhiteElo "2366"]
[BlackElo "2506"]
[Annotator "TA"]
[PlyCount "70"]
[EventDate "2022.07.29"]
[EventType "team-tourn"]
[EventCountry "IND"]
[SourceTitle "playchess.com"]
[Source "ChessBase"]
[SourceQuality "1"]
[WhiteTeam "Macedonia"]
[BlackTeam "France"]
[WhiteTeamCountry "MKD"]
[BlackTeamCountry "FRA"]
[TimeControl "40/5400+30:1800+30"]

{[%evp 10,70,33,28,28,35,38,7,35,15,22,0,32,39,37,-8,-8,0,35,41,45,-6,23,18,37,0,0,0,0,0,39,0,37,22,51,64,58,62,72,0,0,16,114,112,73,-1195,-1139,-29974,-29974,-29988,-29989,-29992,-29993,-29993,-29994,-29994,-29995,-29995,-29995,-29995,-29996,-29996,-29997]} 1. e4 {[%emt 0:00:17]} e5 {[%emt 0:00:26]} 2. Nf3 {[%emt 0:00:46]} Nc6 {[%emt 0:00:25]} 3. Bc4 {[%emt 0:00:21]} Nf6 {[%emt 0:00:41]} 4. d3 {[%emt 0:00:55]} h6 {[%emt 0:00:10]} 5. O-O {[%emt 0:01:59]} d6 {[%emt 0:01:51]} 6. a4 {[%emt 0:12:07]} g5 {[%emt 0:01:15] C55: Two Knights: 4 d3, 4 d4 exd4 5 e5 and Max Lange Attack.} 7. a5 {[%emt 0:03:46]} a6 {[%emt 0:10:21]} 8. Be3 {[%emt 0:10:40]} Bg7 {[%emt 0:09:35] The position is equal.} 9. Nc3 {[%emt 0:02:34]} O-O {[%emt 0:04:44] [#]} 10. d4 $146 {[%emt 0:20:19]} ({Predecessor:} 10. h3 Be6 11. Nd2 Ne7 12. Bxe6 fxe6 13. Ne2 Ng6 14. Ng3 Nf4 15. Bxf4 exf4 16. Nh5 Nxh5 17. Qxh5 {½-½ (34) Dragun,K (2590)-Mei,A (2304) Redmond 2022}) 10... exd4 {[%emt 0:15:54]} 11. Nxd4 {[%emt 0:02:55]} (11. Bxd4 Re8 $15) 11... Ng4 {[%emt 0:00:05]} 12. Nxc6 {[%emt 0:11:35]} bxc6 {[%emt 0:00:05]} 13. Bd2 {[%emt 0:03:06]} d5 {[%emt 0:12:31] Strongly threatening ...Qd6.} 14. Be2 {[%emt 0:03:46]} (14. exd5 Qd6 15. g3 Ne5 $15) 14... Nf6 {[%emt 0:03:09]} 15. Bd3 {[%emt 0:05:35]} (15. f4 $14) 15... Bg4 {[%emt 0:05:45]} 16. Qc1 {[%emt 0:05:20]} Re8 {[%emt 0:01:54][%cal Rf6e4]} 17. Re1 {[%emt 0:06:48][%cal Oh2h4]} Qd6 {[%emt 0:04:02]} 18. h3 {[%emt 0:01:56]} Bd7 {[%emt 0:00:12]} 19. Re2 {[%emt 0:00:51]} d4 {[%emt 0:02:26]} 20. Nd1 {[%emt 0:01:50]} Nh5 {[%emt 0:00:06]} (20... c5 $5 {[%cal Rc5c4]}) 21. b3 {[%emt 0:00:40]} g4 {[%emt 0:02:54]} 22. hxg4 {[%emt 0:00:54]} Bxg4 {[%emt 0:00:01]} 23. f3 {[%emt 0:00:44]} Bd7 {[%emt 0:02:24]} 24. g4 {[%emt 0:00:18]} ({White should try} 24. Nb2 $16) 24... Be5 $1 $11 {[%emt 0:06:56][%cal Od6f6]} 25. gxh5 {[%emt 0:00:34]} Kh8 {[%emt 0:00:02]} (25... Kh7 $1 $11 {keeps the balance.} 26. Kf1 Bh3+ 27. Ke1 Rg8) 26. Rg2 $1 $16 {[%emt 0:02:13]} (26. Bxh6 $2 Rg8+ 27. Bg5 Bf4 $19) 26... Rg8 {[%emt 0:02:37] [#]} 27. Rxg8+ {[%emt 0:00:34][%mdl 8192] White does not recover from this.} ({Wrong is} 27. Bxh6 $2 Bh2+ 28. Kf1 Rxg2 $19) (27. Bb4 $1 $16 Qf6 {[#]} (27... Rxg2+ 28. Kxg2) 28. Be7 $1 Rxg2+ 29. Kxg2 Qxe7 30. Qxh6+ Kg8 31. Nf2 (31. f4 Qh4 $16)) 27... Rxg8+ $19 {[%emt 0:00:01]} 28. Kf1 {[%emt 0:00:06]} Qf6 {[%emt 0:01:01] Black mates.} 29. Ke2 {[%emt 0:00:58]} Rg3 {[%emt 0:02:34]} 30. f4 {[%emt 0:00:29]} Bg4+ {[%emt 0:00:12]} 31. Ke1 {[%emt 0:00:24] [#]} Qh4 $1 {[%emt 0:01:03][%cal Rg3g1]} 32. Nf2 {[%emt 0:00:05]} Rg2 {[%emt 0:00:10][%csl Gg2][%cal Rh4f2]} 33. Be3 {[%emt 0:00:55]} dxe3 {[%emt 0:00:05]} 34. Qxe3 {[%emt 0:00:04]} Bc3+ {[%emt 0:00:55] This bishop pair is nice.} 35. Kf1 {[%emt 0:00:05]} Qh2 {[%emt 0:00:19] Weighted Error Value: White=0.46/Black=0.16 (very precise)} 0-1

[Event "44th Chess Olympiad Open 2022"]
[Site "Chennai"]
[Date "2022.07.30"]
[Round "2.17"]
[White "Georgiev, Todor"]
[Black "Bosiocic, Marin"]
[Result "1-0"]
[ECO "E15"]
[WhiteElo "2272"]
[BlackElo "2549"]
[Annotator "TA"]
[PlyCount "103"]
[EventDate "2022.07.29"]
[EventType "team-tourn"]
[EventCountry "IND"]
[SourceTitle "playchess.com"]
[Source "ChessBase"]
[SourceQuality "1"]
[WhiteTeam "Bulgaria"]
[BlackTeam "Croatia"]
[WhiteTeamCountry "BUL"]
[BlackTeamCountry "CRO"]
[TimeControl "40/5400+30:1800+30"]

{[%evp 13,103,20,25,23,35,-5,0,0,19,0,18,27,75,70,167,181,175,175,256,98,278,274,275,295,284,268,281,279,272,175,193,104,104,110,98,119,177,114,191,192,190,191,237,208,393,392,395,394,526,526,642,623,660,660,660,657,673,672,671,661,689,691,750,761,764,714,698,663,988,988,969,923,979,979,980,970,950,936,1169,1133,1052,960,1879,1759,2092,2440,2061,1977,1670,1608,1175,1134]} 1. d4 {[%emt 0:00:27]} Nf6 {[%emt 0:00:09]} 2. c4 {[%emt 0:01:17]} e6 {[%emt 0:00:13]} 3. Nf3 {[%emt 0:00:45]} b6 {[%emt 0:00:10]} 4. g3 {[%emt 0:02:24]} Ba6 {[%emt 0:00:10]} 5. Qc2 {[%emt 0:01:36]} c5 {[%emt 0:01:48]} 6. dxc5 {[%emt 0:11:40]} bxc5 {[%emt 0:01:31]} 7. Bg2 {[%emt 0:02:35]} Nc6 {[%emt 0:00:53]} 8. O-O $1 {[%emt 0:08:17] E15: Queen's Indian: 4 g3 sidelines, 4 g3 Ba6 and 4 g3 Bb7 early deviations.} Be7 {[%emt 0:01:46]} 9. b3 {[%emt 0:07:53] [#]} d5 $146 {[%emt 0:02:39]} ({Predecessor:} 9... O-O 10. Bb2 d5 11. cxd5 exd5 12. Nc3 d4 13. Na4 d3 14. exd3 Bxd3 15. Qc3 Bxf1 16. Rxf1 {0-1 (28) Ambartsumova,K (2382)-Navara,D (2697) Chess.com INT 2022}) 10. Bb2 {[%emt 0:17:36] The position is equal.} d4 {[%emt 0:00:45]} 11. a3 {[%emt 0:07:28][%cal Ob3b4]} Rc8 {[%emt 0:03:35]} 12. b4 {[%emt 0:06:52]} cxb4 {[%emt 0:02:34]} (12... Bb7 $11) 13. Qa4 {[%emt 0:04:28]} Qa5 {[%emt 0:04:27]} (13... Bxc4 $2 14. Nxd4 Nd5 15. axb4 $18 (15. Nxc6 Qd7 $18)) (13... Nd7 $14) 14. Qxa5 $18 {[%emt 0:04:55]} Nxa5 {[%emt 0:00:07]} 15. axb4 {[%emt 0:00:05]} Bxb4 {[%emt 0:00:27]} (15... Nxc4 $142 16. Rxa6 Nxb2) 16. Nxd4 $2 {[%emt 0:04:29]} (16. Ra4 $18) 16... Bxc4 $2 {[%emt 0:01:03]} (16... Rxc4 $2 17. Na3 Rc8 18. Nac2 Bxe2 19. Nxb4 Bxf1 20. Bxf1 $18) (16... Bb7 $16 {was worth a try.}) 17. Ra4 {[%emt 0:01:29]} e5 {[%emt 0:07:39]} 18. Nf5 {[%emt 0:03:11]} (18. Rxb4 exd4 19. Rc1 O-O $18) 18... Bxe2 {[%emt 0:00:39]} 19. Rxb4 {[%emt 0:01:35] Threatens to win with Re1.} Bxf1 {[%emt 0:00:08]} 20. Kxf1 {[%emt 0:00:42] Nd6+ is the strong threat.} (20. Bxf1 Kd7 21. Bb5+ Nc6 $18) 20... Kd7 {[%emt 0:01:17] Prevents Nd6.} 21. Ra4 {[%emt 0:06:09]} (21. Nxg7 Rb8 22. Bh3+ Kc6 23. Bg2+ Kd7 $11) 21... Nc4 {[%emt 0:04:23]} 22. Rxa7+ {[%emt 0:01:03]} (22. Bc3 $18 {And now Bh3 would win.} Rc7 23. Bh3 (23. Nxg7 Rb8 $16)) 22... Rc7 $16 {[%emt 0:00:04]} 23. Rxc7+ {[%emt 0:00:17]} Kxc7 {[%emt 0:00:22]} 24. Bc3 {[%emt 0:00:34]} g6 {[%emt 0:06:46] [#]} (24... Rb8 $16) 25. Nh6 {[%emt 0:01:29]} (25. Na3 $1 $18 {[%cal Ra3c4][%mdl 512]} Nxa3 26. Bxe5+ Kd7 27. Bxf6 (27. Nd4 Rd8 $18)) 25... Rd8 {[%emt 0:06:23]} (25... Rf8 $16 {keeps fighting.}) 26. Ke2 $18 {[%emt 0:00:25]} ({And not} 26. Nxf7 Rd1+ 27. Ke2 Rxb1 $11) 26... Rd7 {[%emt 0:04:44]} 27. Nd2 {[%emt 0:01:25]} Nd6 {[%emt 0:00:45]} (27... Nxd2 $142 28. Bxe5+ (28. Bxd2 Nh5 $16) 28... Kb6) 28. Bh3 {[%emt 0:01:42]} ({Much less strong is} 28. Bxe5 Re7 29. Nc4 Nd7 $14) 28... Re7 $2 {[%emt 0:00:24] [#]} (28... Nd5) 29. Ba5+ $1 {[%emt 0:00:33]} Kc6 {[%emt 0:04:21]} 30. Bd8 {[%emt 0:00:14] This bishop pair is nice.} Ra7 {[%emt 0:01:44]} 31. Bxf6 {[%emt 0:00:07] White is clearly winning.} Nb5 {[%emt 0:00:13]} 32. Nf3 {[%emt 0:01:04]} Nc3+ {[%emt 0:01:08]} 33. Kd3 {[%emt 0:01:03]} e4+ {[%emt 0:01:15]} 34. Kxc3 {[%emt 0:00:14]} exf3 {[%emt 0:00:08]} 35. Bg4 {[%emt 0:00:28]} Kd5 {[%emt 0:00:54]} 36. Kd3 {[%emt 0:00:15]} Ra3+ {[%emt 0:00:43]} 37. Bc3 {[%emt 0:00:23]} f5 {[%emt 0:00:12]} 38. Bxf3+ {[%emt 0:00:15]} Ke6 {[%emt 0:00:08]} 39. h4 {[%emt 0:00:42]} Ra2 {[%emt 0:01:11]} 40. Ke3 {[%emt 0:00:29]} Ra3 {[%emt 0:00:12]} 41. Kd4 {[%emt 0:30:44]} Ra4+ {[%emt 0:30:55]} 42. Kc5 {[%emt 0:00:16]} Ra3 {[%emt 0:00:32]} 43. Bd5+ {[%emt 0:00:28]} Kd7 {[%emt 0:00:07]} 44. Kb4 {[%emt 0:01:02]} Ra6 {[%emt 0:00:16]} 45. Nf7 {[%emt 0:00:40]} Ke7 {[%emt 0:00:10]} 46. Ne5 {[%emt 0:00:00] aiming for Kb5.} Rb6+ {[%emt 0:00:00]} 47. Kc4 {[%emt 0:00:00] Strongly threatening Bg8.} Rb1 {[%emt 0:00:00]} 48. Bg8 {[%emt 0:00:00]} Rf1 {[%emt 0:00:00]} 49. Bd4 {[%emt 0:00:00]} Rc1+ {[%emt 0:00:00]} 50. Kd3 {[%emt 0:00:00]} Rd1+ {[%emt 0:00:00]} 51. Ke3 {[%emt 0:00:00]} Re1+ {[%emt 0:00:00]} 52. Kd2 {[%emt 0:00:00] Weighted Error Value: White=0.17 (very precise) /Black=0.42} 1-0

[Event "44th Chess Olympiad Open 2022"]
[Site "Chennai"]
[Date "2022.07.30"]
[Round "2.18"]
[White "Golubovskis, Maksims"]
[Black "Hracek, Zbynek"]
[Result "0-1"]
[ECO "B90"]
[WhiteElo "2219"]
[BlackElo "2555"]
[Annotator "TA"]
[PlyCount "64"]
[EventDate "2022.07.29"]
[EventType "team-tourn"]
[EventCountry "IND"]
[SourceTitle "playchess.com"]
[Source "ChessBase"]
[SourceQuality "1"]
[WhiteTeam "Latvia"]
[BlackTeam "Czech Republic"]
[WhiteTeamCountry "LAT"]
[BlackTeamCountry "CZE"]
[TimeControl "40/5400+30:1800+30"]

{[%evp 12,64,4,2,34,20,25,24,47,-14,-24,-27,-2,0,0,0,-20,0,-14,-47,-58,-70,-71,-59,-54,-130,-127,-300,-174,-289,-270,-330,-305,-342,-330,-339,-319,-344,-318,-339,-310,-269,-269,-375,-381,-383,-381,-377,-367,-349,-357,-997,-956,-1209,-1170]} 1. e4 {[%emt 0:00:03]} c5 {[%emt 0:00:04]} 2. Nf3 {[%emt 0:00:14]} d6 {[%emt 0:00:06]} 3. d4 {[%emt 0:00:18]} cxd4 {[%emt 0:00:05]} 4. Nxd4 {[%emt 0:00:11]} Nf6 {[%emt 0:00:04]} 5. Nc3 {[%emt 0:00:15]} a6 {[%emt 0:00:05]} 6. h3 {[%emt 0:00:13]} e5 {[%emt 0:00:24]} 7. Nde2 {[%emt 0:00:13]} h5 {[%emt 0:00:08] Inhibits g4. B90: Sicilian Najdorf: Unusual White 6th moves, 6 Be3 Ng4 and 6 Be3 e5.} 8. g3 {[%emt 0:00:09]} Be7 {[%emt 0:00:22]} 9. Bg2 {[%emt 0:00:20]} b5 {[%emt 0:00:23][%cal Bb7b5,Bb5b4][%mdl 32] White has an edge.} 10. a4 {[%emt 0:00:31]} (10. Nd5 $14) 10... b4 $11 {[%emt 0:00:29]} 11. Nd5 {[%emt 0:00:08]} Nxd5 {[%emt 0:00:07]} 12. Qxd5 {[%emt 0:01:13]} Ra7 {[%emt 0:00:11]} 13. Be3 {[%emt 0:00:58]} Rb7 {[%emt 0:02:21]} 14. O-O {[%emt 0:04:47]} Nd7 {[%emt 0:00:59][%cal Bb8d7,Bd7f6,Bf6d5][%mdl 32]} 15. f4 {[%emt 0:15:55]} O-O {[%emt 0:01:10]} 16. Qd2 {[%emt 0:11:05] [#]} a5 $146 {[%emt 0:06:48]} ({Predecessor:} 16... Nf6 17. c4 bxc3 18. Nxc3 Be6 19. f5 Bc4 20. Rf2 Qb8 21. Bf3 Rd8 22. Nd5 Bxd5 23. exd5 {0-1 (36) Karacsonyi,G (2359)-Pasztor,B (2302) Budapest 2021}) 17. f5 {[%emt 0:09:03]} Nf6 {[%emt 0:09:32]} 18. b3 {[%emt 0:22:08]} ({White should play} 18. c4 $15) 18... Rd7 $17 {[%emt 0:04:54]} 19. Qd3 $2 {[%emt 0:09:55] [#] White does not recover from this.} (19. c4 $17 {was the only defense.}) 19... Bb7 {[%emt 0:05:48]} (19... d5 $142 20. Kh1 dxe4) 20. Bg5 {[%emt 0:01:31]} (20. c4 {keeps fighting.}) 20... d5 $19 {[%emt 0:05:03]} 21. exd5 {[%emt 0:01:28]} Bxd5 {[%emt 0:06:09]} (21... Nxd5 $2 22. Bxe7 Qxe7 23. Rae1) 22. Bxd5 {[%emt 0:01:27]} Nxd5 {[%emt 0:06:17]} ({Stronger than} 22... Rxd5 23. Qf3 $17) 23. Bxe7 {[%emt 0:01:24]} Qxe7 {[%emt 0:02:24]} ({Not} 23... Nxe7 $2 24. Qf3 $19) ({Worse is} 23... Rxe7 24. c4 Qb6+ 25. Kh1 $17) 24. Kh1 {[%emt 0:06:44]} Rc8 {[%emt 0:06:10]} 25. Rac1 {[%emt 0:02:09]} Nf6 {[%emt 0:08:27]} 26. Qe3 {[%emt 0:00:42]} Rcd8 {[%emt 0:07:54]} 27. Rfe1 {[%emt 0:03:26]} Rd2 {[%emt 0:00:20]} 28. Ng1 {[%emt 0:00:25]} Qb7+ {[%emt 0:05:25]} 29. Qf3 {[%emt 0:00:40]} e4 {[%emt 0:01:21]} 30. Qe3 {[%emt 0:00:18]} Qc8 {[%emt 0:00:55][%csl LRc2,LRf5]} 31. c3 {[%emt 0:01:13] [#]} (31. Re2 R2d5 32. Rf1) 31... R8d3 {[%emt 0:04:50]} 32. cxb4 {[%emt 0:01:47]} Qxc1 {[%emt 0:00:11] Weighted Error Value: White=0.59/Black=0.11 (very precise)} 0-1

[Event "44th Chess Olympiad Open 2022"]
[Site "Chennai"]
[Date "2022.07.30"]
[Round "2.20"]
[White "Bastidas Rodriguez, Emilio"]
[Black "Gavrilescu, David"]
[Result "1/2-1/2"]
[ECO "A13"]
[WhiteElo "2351"]
[BlackElo "2525"]
[Annotator "TA"]
[PlyCount "63"]
[EventDate "2022.07.29"]
[EventType "team-tourn"]
[EventCountry "IND"]
[SourceTitle "playchess.com"]
[Source "ChessBase"]
[SourceQuality "1"]
[WhiteTeam "Ecuador"]
[BlackTeam "Romania"]
[WhiteTeamCountry "ECU"]
[BlackTeamCountry "ROU"]
[TimeControl "40/5400+30:1800+30"]

{[%evp 9,63,-3,-5,-10,28,18,26,0,22,20,19,21,22,31,14,30,74,45,85,7,3,0,11,-41,-12,-25,-6,-6,0,0,0,0,0,0,0,10,18,0,0,0,0,0,0,0,0,0,0,0,0,0,0,0,35,35,50,62]} 1. c4 {[%emt 0:00:03]} e6 {[%emt 0:00:20]} 2. g3 {[%emt 0:00:29]} d5 {[%emt 0:00:10]} 3. Bg2 {[%emt 0:00:08]} d4 {[%emt 0:01:00]} 4. Nf3 {[%emt 0:00:49]} c5 {[%emt 0:01:45][%cal Bc7c5,Bc5b4][%mdl 32]} 5. b4 {[%emt 0:02:17]} cxb4 {[%emt 0:00:00]} 6. a3 {[%emt 0:00:19] A13: English Opening: 1...e6.} bxa3 {[%emt 0:04:15]} 7. O-O {[%emt 0:04:35]} Nf6 {[%emt 0:02:13][%cal Bg8f6,Bf6d7,Bd7c5][%mdl 32]} 8. d3 {[%emt 0:00:57] White has an edge.} Nc6 {[%emt 0:01:02]} 9. Qa4 {[%emt 0:02:57]} Nd7 {[%emt 0:08:13] Against Ne5} 10. Bxa3 {[%emt 0:03:03]} Bxa3 {[%emt 0:01:49] [#]} 11. Qxa3 $146 {[%emt 0:00:24]} ({Predecessor:} 11. Nxa3 O-O 12. Nb5 e5 13. Qa3 a5 14. Rfb1 Ra6 15. Qd6 Nb4 16. Qc7 Qf6 17. Nd2 {0-1 (47) Larrea,M (2284)-Roselli Mailhe,B (2420) Montevideo 2011}) 11... Qe7 {[%emt 0:00:22]} 12. Nbd2 {[%emt 0:00:30][%mdl 1024] White has compensation.} Nc5 {[%emt 0:19:34]} 13. Rfb1 {[%emt 0:01:11]} Rb8 {[%emt 0:03:06]} 14. Rb5 {[%emt 0:10:17]} ({White should try} 14. e3 $16 dxe3 15. fxe3) 14... b6 $11 {[%emt 0:01:37] [#]} 15. Ng5 $1 {[%emt 0:00:42]} Bd7 {[%emt 0:25:07]} 16. Nde4 {[%emt 0:32:13]} (16. f4 $11) 16... Nxe4 {[%emt 0:00:00]} (16... Nb7 {is interesting.} 17. f4 Qxa3 18. Rxa3 Ke7) 17. Bxe4 {[%emt 0:02:27]} Qxa3 {[%emt 0:00:00]} (17... Rb7 {keeps more tension.} 18. Bg2 Qxa3 19. Rxa3 Ke7) 18. Rxa3 {[%emt 0:01:31]} h6 {[%emt 0:00:00]} 19. Nf3 {[%emt 0:02:01]} Ne7 {[%emt 0:00:00][%cal Bc6e7,Be7c8,Bc8d6,Bd6f5,Bf5d4][%mdl 32] [#] Hoping for ...f5.} 20. Rxa7 {[%emt 0:00:27] Rb2 is the strong threat.} Nc8 {[%emt 0:00:00]} 21. Ra6 {[%emt 0:08:06] aiming for Rb4.} Bxb5 {[%emt 0:04:10]} 22. cxb5 {[%emt 0:00:04]} Nd6 {[%emt 0:04:20]} 23. Nxd4 {[%emt 0:09:50]} O-O {[%emt 0:05:01]} 24. Bc6 {[%emt 0:01:43]} Rfd8 {[%emt 0:05:35]} 25. Nf3 {[%emt 0:01:39]} Nf5 {[%emt 0:02:03]} 26. Ne5 {[%emt 0:00:58]} Nd4 {[%emt 0:00:37]} 27. e3 {[%emt 0:00:33]} f6 {[%emt 0:01:59]} 28. Nd7 {[%emt 0:00:48]} Nxc6 {[%emt 0:00:13]} 29. bxc6 {[%emt 0:00:15] And now c7 would win.} Rbc8 {[%emt 0:00:16]} 30. Rxb6 {[%emt 0:00:47]} Rc7 {[%emt 0:01:12]} (30... Kf7 $5 {[%cal Rf7e7]}) 31. d4 {[%emt 0:03:07]} Rdc8 {[%emt 0:04:31]} 32. Nb8 {[%emt 0:04:54] Weighted Error Value: White=0.14 (very precise) /Black=0.10 (very precise)} 1/2-1/2

[Event "44th Chess Olympiad Open 2022"]
[Site "Chennai"]
[Date "2022.07.30"]
[Round "2.22"]
[White "Zhakshylykov, Erzhan"]
[Black "Ivanisevic, Ivan"]
[Result "0-1"]
[ECO "E90"]
[WhiteElo "2332"]
[BlackElo "2561"]
[Annotator "TA"]
[PlyCount "102"]
[EventDate "2022.07.29"]
[EventType "team-tourn"]
[EventCountry "IND"]
[SourceTitle "playchess.com"]
[Source "ChessBase"]
[SourceQuality "1"]
[WhiteTeam "Kyrgyzstan"]
[BlackTeam "Serbia"]
[WhiteTeamCountry "KGZ"]
[BlackTeamCountry "SRB"]
[TimeControl "40/5400+30:1800+30"]

{[%evp 17,102,60,75,31,20,24,37,16,32,35,28,30,24,25,29,0,0,0,0,0,0,-29,-60,-60,-50,-52,-49,-44,-50,-43,-60,-58,-10,-16,-34,-23,-31,-33,-27,-65,-65,-66,-16,-25,-27,-101,-65,-87,-45,-45,-41,-47,-34,-59,-59,-172,-148,-183,-148,-429,-437,-2308,-2302,-1773,-1624,-5102,-4839,-29971,-29971,-29971,-29973,-29973,-29974,-29974,-29975,-29975,-29974,-29974,-29975,-29975,-29976,-29977,-29978,-29977,-29976,-29987,-29977]} 1. d4 {[%emt 0:00:05]} Nf6 {[%emt 0:00:04]} 2. c4 {[%emt 0:00:11]} c5 {[%emt 0:00:04]} 3. d5 {[%emt 0:00:41]} g6 {[%emt 0:00:07]} 4. Nc3 {[%emt 0:00:14]} Bg7 {[%emt 0:00:04]} 5. e4 {[%emt 0:02:34]} d6 {[%emt 0:00:06]} 6. h3 {[%emt 0:01:56]} O-O {[%emt 0:00:31]} 7. Nf3 {[%emt 0:00:11]} e6 {[%emt 0:00:19]} 8. Bd3 {[%emt 0:01:36]} Na6 {[%emt 0:00:15]} 9. O-O {[%emt 0:19:46]} Nc7 {[%emt 0:01:03] 9...e5 injects fresh life into this line.} 10. dxe6 {[%emt 0:07:26] E90: King's Indian: Classical: Early deviations and 6 h3.} Nxe6 {[%emt 0:01:00]} 11. Be3 {[%emt 0:01:06]} a6 $5 {[%emt 0:16:48][%mdl 4] Exploring less charted territory.} 12. Qd2 {[%emt 0:07:07] [#] White is slightly better.} b5 $146 {[%emt 0:04:05]} ({Predecessor:} 12... Re8 13. Nd5 Bd7 14. Rad1 b5 15. Qc2 Bc6 16. Rfe1 Qb8 17. b3 Qb7 18. Bf1 Rad8 {½-½ (46) Kantor,G (2255)-Farago,S (2269) Budapest 2011}) 13. cxb5 {[%emt 0:07:01]} axb5 {[%emt 0:00:06]} 14. Nxb5 {[%emt 0:15:24]} d5 {[%emt 0:03:54]} 15. exd5 {[%emt 0:02:36]} Nxd5 {[%emt 0:03:00]} 16. Bh6 {[%emt 0:05:07]} Bxh6 {[%emt 0:06:20]} 17. Qxh6 {[%emt 0:00:04]} Ndf4 $1 {[%emt 0:00:07]} 18. Be4 {[%emt 0:01:27]} Rb8 {[%emt 0:06:53]} 19. Rad1 {[%emt 0:03:07]} Qf6 {[%emt 0:00:20]} 20. Nc3 {[%emt 0:03:08]} Rxb2 {[%emt 0:02:32]} 21. Nd5 {[%emt 0:00:37]} Nxd5 {[%emt 0:00:38]} 22. Bxd5 {[%emt 0:00:12]} Qf4 {[%emt 0:00:38]} 23. Qxf4 {[%emt 0:00:42]} Nxf4 {[%emt 0:00:09]} 24. Bc4 {[%emt 0:11:40] Against Ba6} Be6 {[%emt 0:02:24]} (24... Bb7 $15 25. Kh2 Bxf3 26. gxf3 Rb4) 25. Bxe6 $11 {[%emt 0:00:25]} Nxe6 {[%emt 0:00:38]} 26. Rd2 {[%emt 0:02:44]} Rxd2 {[%emt 0:00:25]} 27. Nxd2 {[%emt 0:00:03][%mdl 4096] Endgame KRN-KRN} Ra8 {[%emt 0:00:16]} 28. Rc1 {[%emt 0:04:59]} Rxa2 {[%emt 0:00:25]} 29. Nb3 {[%emt 0:00:05]} Nd4 {[%emt 0:04:42]} (29... Nf4 $1 $15 30. Rxc5 Nd3 31. Rc8+ Kg7) 30. Nxd4 {[%emt 0:00:08]} cxd4 {[%emt 0:00:05] KR-KR} 31. Rc8+ {[%emt 0:00:05]} Kg7 {[%emt 0:00:05]} 32. Rd8 {[%emt 0:00:27]} Ra1+ {[%emt 0:04:07]} 33. Kh2 {[%emt 0:00:03]} Rd1 {[%emt 0:00:04]} 34. Kg3 {[%emt 0:03:20]} Kf6 {[%emt 0:00:16]} 35. Kf4 {[%emt 0:00:52]} Rd2 {[%emt 0:00:48]} 36. f3 {[%emt 0:00:39]} (36. Kf3 $15) 36... g5+ {[%emt 0:03:53][%cal Bg6g5,Bg5f4][%mdl 32]} ({Worse is} 36... Rxg2 37. Rd6+ Kg7 38. Rxd4 $17) 37. Kg3 {[%emt 0:00:38]} Ke5 {[%emt 0:02:23] Inhibits f4+. Hoping for ...d3.} 38. Rh8 $2 {[%emt 0:00:31][%mdl 8192] [#] White does not recover from this.} (38. Re8+ $17 Kd5 39. Rf8) 38... d3 $1 $19 {[%emt 0:01:49]} 39. f4+ {[%emt 0:00:08]} (39. Rxh7 $142 Rxg2+ 40. Kxg2) 39... gxf4+ {[%emt 0:01:10]} 40. Kf3 {[%emt 0:00:03]} Rd1 {[%emt 0:00:16] Threatens to win with ...Rf1+.} 41. Kf2 {[%emt 0:31:10] Prevents Rf1+.} Kd4 {[%emt 0:37:06]} 42. Rxh7 {[%emt 0:00:20]} Rh1 {[%emt 0:04:36] Black mates.} 43. Rxf7 {[%emt 0:00:47]} d2 {[%emt 0:00:25]} 44. Rd7+ {[%emt 0:00:12]} Kc3 {[%emt 0:00:07]} 45. Kf3 {[%emt 0:00:17]} d1=Q+ {[%emt 0:02:10]} 46. Rxd1 {[%emt 0:00:03]} Rxd1 {[%emt 0:00:08]} 47. Kxf4 {[%emt 0:00:02] KR-KPP} Kd4 {[%emt 0:00:39]} 48. h4 {[%emt 0:00:34]} Kd5 {[%emt 0:01:45]} 49. Kg5 {[%emt 0:01:49]} Ke6 {[%emt 0:00:36]} 50. g4 {[%emt 0:00:35]} Kf7 {[%emt 0:00:11]} 51. Kh6 {[%emt 0:00:07]} Rd4 {[%emt 0:01:02] Weighted Error Value: White=0.65/Black=0.06 (flawless)} 0-1